Workbook

Sheet Útmutató
B2: SZEMÉLYES PÉNZFORGALOM
B3: Ez a munkafüzet éves, havi és napi cash flow munkalapokat tartalmaz. Az Önnek leginkább megfelelő pénzforgalomtípust kiválasztva vagy az összeset felhasználva betekintést nyerhet a személyes pénzforgalmába.
B5: Napi pénzforgalom | E5: Havi pénzforgalom | H5: Éves pénzforgalom
B7: Megadhatja a napi pénzforgalom becsült értékét, és ellenőrizheti a becsült havi és éves végösszegeket. Ezzel képet kaphat az egy hónapban vagy évben várható napi pénzköltési szokásairól. | E7: A havi pénzforgalmát megadva vagy a fennmaradó hónapokra szóló becslést készítve megtekintheti az év egyes hónapjaira vonatkozó tervezett pénzforgalmat. | H7: Adjon meg egy éves cash flow összeget négy munkalapon: Bevétel, Kiadások, Választható és Megtakarítások. Megtekintheti a havi lebontást és az értékek összehasonlítását, és ami még fontosabb, az éves és a havi eredményeket.

Sheet Napi pénzforgalom
B1: SZEMÉLYES PÉNZFORGALOM
C2: Rendelkezésre álló készpénz összesen: | D2: =NapiPénzforgalom -> 577.84 Ft | F2: MEGJEGYZÉS: Ha napi tételeket szeretne felvenni a táblázatba, becsülje fel azok havi összegét/értékét, és írja be az értéket a megfelelő hónap oszlopába.
B4: NAPI ÖSSZEGZÉS
B5: Összesen | C5: Napi | D5: Havi | E5: Éves
B6: Bevétel | C6: =SUMIF(Napi[Típus],$B6,Napi[Napi]) -> 342.47 Ft | D6: =SUMIF(Napi[Típus],$B6,Napi[Havi]) -> 10,416.80 Ft | E6: =SUMIF(Napi[Típus],$B6,Napi[Éves]) -> 125,001.55 Ft
B7: Kiadás | C7: =SUMIF(Napi[Típus],$B7,Napi[Napi]) -> 136.06 Ft | D7: =SUMIF(Napi[Típus],$B7,Napi[Havi]) -> 4,138.49 Ft | E7: =SUMIF(Napi[Típus],$B7,Napi[Éves]) -> 49,661.90 Ft
B8: Választható | C8: =SUMIF(Napi[Típus],$B8,Napi[Napi]) -> 36.29 Ft | D8: =SUMIF(Napi[Típus],$B8,Napi[Havi]) -> 1,103.82 Ft | E8: =SUMIF(Napi[Típus],$B8,Napi[Éves]) -> 13,245.85 Ft
B9: Megtakarítások | C9: =SUMIF(Napi[Típus],$B9,Napi[Napi]) -> 63.02 Ft | D9: =SUMIF(Napi[Típus],$B9,Napi[Havi]) -> 1,916.86 Ft | E9: =SUMIF(Napi[Típus],$B9,Napi[Éves]) -> 23,002.30 Ft
B11: Típus | C11: Leírás | D11: Napi | E11: Havi | F11: Éves
B12: Bevétel | C12: Fizetés | D12: 246.58 Ft | E12: =Napi[[#This Row],[Éves]]/12 -> 7,500.14 Ft | F12: =Napi[[#This Row],[Napi]]*365 -> 90,001.70 Ft
B13: Bevétel | C13: Jutalék/bónusz | D13: 13.70 Ft | E13: =Napi[[#This Row],[Éves]]/12 -> 416.71 Ft | F13: =Napi[[#This Row],[Napi]]*365 -> 5,000.50 Ft
B14: Bevétel | C14: Egyéb 1 | D14: 82.19 Ft | E14: =Napi[[#This Row],[Éves]]/12 -> 2,499.95 Ft | F14: =Napi[[#This Row],[Napi]]*365 -> 29,999.35 Ft
B15: Bevétel | C15: Egyéb 2 | D15: 0.00 Ft | E15: =Napi[[#This Row],[Éves]]/12 -> 0.00 Ft | F15: =Napi[[#This Row],[Napi]]*365 -> 0.00 Ft
B16: Bevétel | C16: Egyéb 3 | D16: 0.00 Ft | E16: =Napi[[#This Row],[Éves]]/12 -> 0.00 Ft | F16: =Napi[[#This Row],[Napi]]*365 -> 0.00 Ft
B17: Bevétel | C17: Egyéb 4 | D17: 0.00 Ft | E17: =Napi[[#This Row],[Éves]]/12 -> 0.00 Ft | F17: =Napi[[#This Row],[Napi]]*365 -> 0.00 Ft
B18: Kiadás | C18: Társadalombiztosítás/egészségbiztosítás | D18: 41.10 Ft | E18: =Napi[[#This Row],[Éves]]/12 -> 1,250.13 Ft | F18: =Napi[[#This Row],[Napi]]*365 -> 15,001.50 Ft
B19: Kiadás | C19: Jövedelemadó | D19: 6.85 Ft | E19: =Napi[[#This Row],[Éves]]/12 -> 208.35 Ft | F19: =Napi[[#This Row],[Napi]]*365 -> 2,500.25 Ft
B20: Kiadás | C20: Járműadó/díjak | D20: 0.55 Ft | E20: =Napi[[#This Row],[Éves]]/12 -> 16.73 Ft | F20: =Napi[[#This Row],[Napi]]*365 -> 200.75 Ft
B21: Kiadás | C21: Járműtörlesztés | D21: 10.96 Ft | E21: =Napi[[#This Row],[Éves]]/12 -> 333.37 Ft | F21: =Napi[[#This Row],[Napi]]*365 -> 4,000.40 Ft
B22: Kiadás | C22: Jelzálog/bérlet | D22: 41.10 Ft | E22: =Napi[[#This Row],[Éves]]/12 -> 1,250.13 Ft | F22: =Napi[[#This Row],[Napi]]*365 -> 15,001.50 Ft
B23: Kiadás | C23: Biztosítás | D23: 0.68 Ft | E23: =Napi[[#This Row],[Éves]]/12 -> 20.68 Ft | F23: =Napi[[#This Row],[Napi]]*365 -> 248.20 Ft
B24: Kiadás | C24: Áram | D24: 3.29 Ft | E24: =Napi[[#This Row],[Éves]]/12 -> 100.07 Ft | F24: =Napi[[#This Row],[Napi]]*365 -> 1,200.85 Ft
B25: Kiadás | C25: Gáz | D25: 1.64 Ft | E25: =Napi[[#This Row],[Éves]]/12 -> 49.88 Ft | F25: =Napi[[#This Row],[Napi]]*365 -> 598.60 Ft
B26: Kiadás | C26: Víz | D26: 1.64 Ft | E26: =Napi[[#This Row],[Éves]]/12 -> 49.88 Ft | F26: =Napi[[#This Row],[Napi]]*365 -> 598.60 Ft
B27: Kiadás | C27: Csatorna | D27: 0.82 Ft | E27: =Napi[[#This Row],[Éves]]/12 -> 24.94 Ft | F27: =Napi[[#This Row],[Napi]]*365 -> 299.30 Ft
B28: Kiadás | C28: Szemét | D28: 0.41 Ft | E28: =Napi[[#This Row],[Éves]]/12 -> 12.47 Ft | F28: =Napi[[#This Row],[Napi]]*365 -> 149.65 Ft
B29: Kiadás | C29: Telefon | D29: 1.64 Ft | E29: =Napi[[#This Row],[Éves]]/12 -> 49.88 Ft | F29: =Napi[[#This Row],[Napi]]*365 -> 598.60 Ft
B30: Kiadás | C30: Internet | D30: 1.64 Ft | E30: =Napi[[#This Row],[Éves]]/12 -> 49.88 Ft | F30: =Napi[[#This Row],[Napi]]*365 -> 598.60 Ft
B31: Kiadás | C31: Fogyatékkal élőknek szóló prémium funkciók | D31: 4.11 Ft | E31: =Napi[[#This Row],[Éves]]/12 -> 125.01 Ft | F31: =Napi[[#This Row],[Napi]]*365 -> 1,500.15 Ft
B32: Kiadás | C32: Élelmiszer | D32: 13.70 Ft | E32: =Napi[[#This Row],[Éves]]/12 -> 416.71 Ft | F32: =Napi[[#This Row],[Napi]]*365 -> 5,000.50 Ft
B33: Kiadás | C33: Ruhanemű | D33: 3.29 Ft | E33: =Napi[[#This Row],[Éves]]/12 -> 100.07 Ft | F33: =Napi[[#This Row],[Napi]]*365 -> 1,200.85 Ft
B34: Kiadás | C34: Orvos/fogorvos/gyógyszerek | D34: 1.64 Ft | E34: =Napi[[#This Row],[Éves]]/12 -> 49.88 Ft | F34: =Napi[[#This Row],[Napi]]*365 -> 598.60 Ft
B35: Kiadás | C35: Busz | D35: 1.00 Ft | E35: =Napi[[#This Row],[Éves]]/12 -> 30.42 Ft | F35: =Napi[[#This Row],[Napi]]*365 -> 365.00 Ft
B36: Kiadás | C36: Egyéb 2 | D36: 0.00 Ft | E36: =Napi[[#This Row],[Éves]]/12 -> 0.00 Ft | F36: =Napi[[#This Row],[Napi]]*365 -> 0.00 Ft
B37: Kiadás | C37: Egyéb 3 | D37: 0.00 Ft | E37: =Napi[[#This Row],[Éves]]/12 -> 0.00 Ft | F37: =Napi[[#This Row],[Napi]]*365 -> 0.00 Ft
B38: Kiadás | C38: Egyéb 4 | D38: 0.00 Ft | E38: =Napi[[#This Row],[Éves]]/12 -> 0.00 Ft | F38: =Napi[[#This Row],[Napi]]*365 -> 0.00 Ft
B39: Választható | C39: Étkezés | D39: 3.29 Ft | E39: =Napi[[#This Row],[Éves]]/12 -> 100.07 Ft | F39: =Napi[[#This Row],[Napi]]*365 -> 1,200.85 Ft
B40: Választható | C40: Ajándékok | D40: 1.64 Ft | E40: =Napi[[#This Row],[Éves]]/12 -> 49.88 Ft | F40: =Napi[[#This Row],[Napi]]*365 -> 598.60 Ft
B41: Választható | C41: Utazás | D41: 6.16 Ft | E41: =Napi[[#This Row],[Éves]]/12 -> 187.37 Ft | F41: =Napi[[#This Row],[Napi]]*365 -> 2,248.40 Ft
B42: Választható | C42: Szórakozás | D42: 3.29 Ft | E42: =Napi[[#This Row],[Éves]]/12 -> 100.07 Ft | F42: =Napi[[#This Row],[Napi]]*365 -> 1,200.85 Ft
B43: Választható | C43: Kozmetikumok | D43: 0.82 Ft | E43: =Napi[[#This Row],[Éves]]/12 -> 24.94 Ft | F43: =Napi[[#This Row],[Napi]]*365 -> 299.30 Ft
B44: Választható | C44: Bevásárlás | D44: 5.48 Ft | E44: =Napi[[#This Row],[Éves]]/12 -> 166.68 Ft | F44: =Napi[[#This Row],[Napi]]*365 -> 2,000.20 Ft
B45: Választható | C45: Adományok | D45: 1.64 Ft | E45: =Napi[[#This Row],[Éves]]/12 -> 49.88 Ft | F45: =Napi[[#This Row],[Napi]]*365 -> 598.60 Ft
B46: Választható | C46: Klubtagságok | D46: 0.82 Ft | E46: =Napi[[#This Row],[Éves]]/12 -> 24.94 Ft | F46: =Napi[[#This Row],[Napi]]*365 -> 299.30 Ft
B47: Választható | C47: Otthoni fejlesztések | D47: 13.15 Ft | E47: =Napi[[#This Row],[Éves]]/12 -> 399.98 Ft | F47: =Napi[[#This Row],[Napi]]*365 -> 4,799.75 Ft
B48: Választható | C48: Egyéb 1 | D48: 0.00 Ft | E48: =Napi[[#This Row],[Éves]]/12 -> 0.00 Ft | F48: =Napi[[#This Row],[Napi]]*365 -> 0.00 Ft
B49: Választható | C49: Egyéb 2 | D49: 0.00 Ft | E49: =Napi[[#This Row],[Éves]]/12 -> 0.00 Ft | F49: =Napi[[#This Row],[Napi]]*365 -> 0.00 Ft
B50: Megtakarítások | C50: Készpénztartalék | D50: 13.70 Ft | E50: =Napi[[#This Row],[Éves]]/12 -> 416.71 Ft | F50: =Napi[[#This Row],[Napi]]*365 -> 5,000.50 Ft
B51: Megtakarítások | C51: 401(k)/Etc | D51: 32.88 Ft | E51: =Napi[[#This Row],[Éves]]/12 -> 1,000.10 Ft | F51: =Napi[[#This Row],[Napi]]*365 -> 12,001.20 Ft
B52: Megtakarítások | C52: Megtakarítási számla | D52: 16.44 Ft | E52: =Napi[[#This Row],[Éves]]/12 -> 500.05 Ft | F52: =Napi[[#This Row],[Napi]]*365 -> 6,000.60 Ft
B53: Megtakarítások | C53: Egyéb 1 | D53: 0.00 Ft | E53: =Napi[[#This Row],[Éves]]/12 -> 0.00 Ft | F53: =Napi[[#This Row],[Napi]]*365 -> 0.00 Ft
B54: Megtakarítások | C54: Egyéb 2 | D54: 0.00 Ft | E54: =Napi[[#This Row],[Éves]]/12 -> 0.00 Ft | F54: =Napi[[#This Row],[Napi]]*365 -> 0.00 Ft
B55: Összeg | D55: =SUMIF(Napi[Típus],"Bevétel",Napi[Napi])-SUMIF(Napi[Típus],"<>Bevétel",Napi[Napi]) -> 107.10 Ft | E55: =SUMIF(Napi[Típus],"Bevétel",Napi[Havi])-SUMIF(Napi[Típus],"<>Bevétel",Napi[Havi]) -> 3,257.63 Ft | F55: =SUMIF(Napi[Típus],"Bevétel",Napi[Éves])-SUMIF(Napi[Típus],"<>Bevétel",Napi[Éves]) -> 39,091.50 Ft

Sheet Havi pénzforgalom
B1: SZEMÉLYES PÉNZFORGALOM
C2: Teljes havi pénzforgalom: | D2: =AktuálisHaviPénzforgalom -> 18,380.00 Ft | F2: MEGJEGYZÉS: A napi tételek esetében becsülje fel a havi összeget/értéket, és írja be az értéket a megfelelő hónap oszlopába.
B4: Típus | C4: Leírás | D4: Jan. | E4: Febr. | F4: Márc. | G4: Ápr. | H4: Máj. | I4: Jún. | J4: Júl. | K4: Aug. | L4: Szept. | M4: Okt. | N4: Nov. | O4: Dec. | P4: Összeg
B5: Bevétel | C5: Fizetés | D5: 7,500.00 Ft | E5: 7,500.00 Ft | F5: 7,500.00 Ft | G5: 7,500.00 Ft | H5: 7,500.00 Ft | I5: 7,500.00 Ft | P5: =SUM(Havi[[#This Row],[Jan.]:[Dec.]]) -> 45,000.00 Ft
B6: Bevétel | C6: Jutalék/bónusz | D6: 400.00 Ft | E6: 400.00 Ft | F6: 500.00 Ft | G6: 200.00 Ft | H6: 0.00 Ft | I6: 600.00 Ft | P6: =SUM(Havi[[#This Row],[Jan.]:[Dec.]]) -> 2,100.00 Ft
B7: Bevétel | C7: Egyéb 1 | D7: 2,500.00 Ft | E7: 2,500.00 Ft | F7: 2,500.00 Ft | G7: 2,500.00 Ft | H7: 2,500.00 Ft | I7: 2,500.00 Ft | P7: =SUM(Havi[[#This Row],[Jan.]:[Dec.]]) -> 15,000.00 Ft
B8: Bevétel | C8: Egyéb 2 | D8: 0.00 Ft | E8: 0.00 Ft | F8: 0.00 Ft | G8: 0.00 Ft | H8: 0.00 Ft | I8: 0.00 Ft | P8: =SUM(Havi[[#This Row],[Jan.]:[Dec.]]) -> 0.00 Ft
B9: Bevétel | C9: Egyéb 3 | D9: 0.00 Ft | E9: 0.00 Ft | F9: 0.00 Ft | G9: 0.00 Ft | H9: 0.00 Ft | I9: 0.00 Ft | P9: =SUM(Havi[[#This Row],[Jan.]:[Dec.]]) -> 0.00 Ft
B10: Bevétel | C10: Egyéb 4 | D10: 0.00 Ft | E10: 0.00 Ft | F10: 0.00 Ft | G10: 0.00 Ft | H10: 0.00 Ft | I10: 0.00 Ft | P10: =SUM(Havi[[#This Row],[Jan.]:[Dec.]]) -> 0.00 Ft
B11: Kiadás | C11: Társadalombiztosítás/egészségbiztosítás | D11: 1,250.00 Ft | E11: 1,250.00 Ft | F11: 1,250.00 Ft | G11: 1,250.00 Ft | H11: 1,250.00 Ft | I11: 1,250.00 Ft | P11: =SUM(Havi[[#This Row],[Jan.]:[Dec.]]) -> 7,500.00 Ft
B12: Kiadás | C12: Jövedelemadó | D12: 208.33 Ft | E12: 208.33 Ft | F12: 208.33 Ft | G12: 208.33 Ft | H12: 208.33 Ft | I12: 208.33 Ft | P12: =SUM(Havi[[#This Row],[Jan.]:[Dec.]]) -> 1,250.00 Ft
B13: Kiadás | C13: Járműadó/díjak | D13: 16.67 Ft | E13: 16.67 Ft | F13: 16.67 Ft | G13: 16.67 Ft | H13: 16.67 Ft | I13: 16.67 Ft | P13: =SUM(Havi[[#This Row],[Jan.]:[Dec.]]) -> 100.00 Ft
B14: Kiadás | C14: Járműtörlesztés | D14: 333.33 Ft | E14: 333.33 Ft | F14: 333.33 Ft | G14: 333.33 Ft | H14: 333.33 Ft | I14: 333.33 Ft | P14: =SUM(Havi[[#This Row],[Jan.]:[Dec.]]) -> 2,000.00 Ft
B15: Kiadás | C15: Jelzálog/bérlet | D15: 1,250.00 Ft | E15: 1,250.00 Ft | F15: 1,250.00 Ft | G15: 1,250.00 Ft | H15: 1,250.00 Ft | I15: 1,250.00 Ft | P15: =SUM(Havi[[#This Row],[Jan.]:[Dec.]]) -> 7,500.00 Ft
B16: Kiadás | C16: Biztosítás | D16: 25.00 Ft | E16: 25.00 Ft | F16: 25.00 Ft | G16: 25.00 Ft | H16: 25.00 Ft | I16: 25.00 Ft | P16: =SUM(Havi[[#This Row],[Jan.]:[Dec.]]) -> 150.00 Ft
B17: Kiadás | C17: Áram | D17: 100.00 Ft | E17: 100.00 Ft | F17: 100.00 Ft | G17: 100.00 Ft | H17: 100.00 Ft | I17: 100.00 Ft | P17: =SUM(Havi[[#This Row],[Jan.]:[Dec.]]) -> 600.00 Ft
B18: Kiadás | C18: Gáz | D18: 50.00 Ft | E18: 50.00 Ft | F18: 50.00 Ft | G18: 50.00 Ft | H18: 50.00 Ft | I18: 50.00 Ft | P18: =SUM(Havi[[#This Row],[Jan.]:[Dec.]]) -> 300.00 Ft
B19: Kiadás | C19: Víz | D19: 50.00 Ft | E19: 50.00 Ft | F19: 50.00 Ft | G19: 50.00 Ft | H19: 50.00 Ft | I19: 50.00 Ft | P19: =SUM(Havi[[#This Row],[Jan.]:[Dec.]]) -> 300.00 Ft
B20: Kiadás | C20: Csatorna | D20: 25.00 Ft | E20: 25.00 Ft | F20: 25.00 Ft | G20: 25.00 Ft | H20: 25.00 Ft | I20: 25.00 Ft | P20: =SUM(Havi[[#This Row],[Jan.]:[Dec.]]) -> 150.00 Ft
B21: Kiadás | C21: Szemét | D21: 12.50 Ft | E21: 12.50 Ft | F21: 12.50 Ft | G21: 12.50 Ft | H21: 12.50 Ft | I21: 12.50 Ft | P21: =SUM(Havi[[#This Row],[Jan.]:[Dec.]]) -> 75.00 Ft
B22: Kiadás | C22: Telefon | D22: 50.00 Ft | E22: 50.00 Ft | F22: 50.00 Ft | G22: 50.00 Ft | H22: 50.00 Ft | I22: 50.00 Ft | P22: =SUM(Havi[[#This Row],[Jan.]:[Dec.]]) -> 300.00 Ft
B23: Kiadás | C23: Internet | D23: 50.00 Ft | E23: 50.00 Ft | F23: 50.00 Ft | G23: 50.00 Ft | H23: 50.00 Ft | I23: 50.00 Ft | P23: =SUM(Havi[[#This Row],[Jan.]:[Dec.]]) -> 300.00 Ft
B24: Kiadás | C24: Fogyatékkal élőknek szóló prémium funkciók | D24: 125.00 Ft | E24: 125.00 Ft | F24: 125.00 Ft | G24: 125.00 Ft | H24: 125.00 Ft | I24: 125.00 Ft | P24: =SUM(Havi[[#This Row],[Jan.]:[Dec.]]) -> 750.00 Ft
B25: Kiadás | C25: Élelmiszer | D25: 400.00 Ft | E25: 500.00 Ft | F25: 450.00 Ft | G25: 400.00 Ft | H25: 450.00 Ft | I25: 425.00 Ft | P25: =SUM(Havi[[#This Row],[Jan.]:[Dec.]]) -> 2,625.00 Ft
B26: Kiadás | C26: Ruhanemű | D26: 50.00 Ft | E26: 75.00 Ft | F26: 100.00 Ft | G26: 75.00 Ft | H26: 125.00 Ft | I26: 75.00 Ft | P26: =SUM(Havi[[#This Row],[Jan.]:[Dec.]]) -> 500.00 Ft
B27: Kiadás | C27: Orvos/fogorvos/gyógyszerek | D27: 50.00 Ft | E27: 10.00 Ft | F27: 25.00 Ft | G27: 25.00 Ft | H27: 20.00 Ft | I27: 70.00 Ft | P27: =SUM(Havi[[#This Row],[Jan.]:[Dec.]]) -> 200.00 Ft
B28: Kiadás | C28: Busz | D28: 30.00 Ft | E28: 30.00 Ft | F28: 30.00 Ft | G28: 20.00 Ft | H28: 30.00 Ft | I28: 30.00 Ft | P28: =SUM(Havi[[#This Row],[Jan.]:[Dec.]]) -> 170.00 Ft
B29: Kiadás | C29: Egyéb 2 | D29: 0.00 Ft | E29: 0.00 Ft | F29: 0.00 Ft | G29: 0.00 Ft | H29: 0.00 Ft | I29: 0.00 Ft | P29: =SUM(Havi[[#This Row],[Jan.]:[Dec.]]) -> 0.00 Ft
B30: Kiadás | C30: Egyéb 3 | D30: 0.00 Ft | E30: 0.00 Ft | F30: 0.00 Ft | G30: 0.00 Ft | H30: 0.00 Ft | I30: 0.00 Ft | P30: =SUM(Havi[[#This Row],[Jan.]:[Dec.]]) -> 0.00 Ft
B31: Kiadás | C31: Egyéb 4 | D31: 0.00 Ft | E31: 0.00 Ft | F31: 0.00 Ft | G31: 0.00 Ft | H31: 0.00 Ft | I31: 0.00 Ft | P31: =SUM(Havi[[#This Row],[Jan.]:[Dec.]]) -> 0.00 Ft
B32: Választható | C32: Étkezés | D32: 50.00 Ft | E32: 150.00 Ft | F32: 100.00 Ft | G32: 50.00 Ft | H32: 150.00 Ft | I32: 100.00 Ft | P32: =SUM(Havi[[#This Row],[Jan.]:[Dec.]]) -> 600.00 Ft
B33: Választható | C33: Ajándékok | D33: 25.00 Ft | E33: 75.00 Ft | F33: 50.00 Ft | G33: 25.00 Ft | H33: 75.00 Ft | I33: 50.00 Ft | P33: =SUM(Havi[[#This Row],[Jan.]:[Dec.]]) -> 300.00 Ft
B34: Választható | C34: Utazás | D34: 0.00 Ft | E34: 0.00 Ft | F34: 1,000.00 Ft | G34: 0.00 Ft | H34: 0.00 Ft | I34: 1,000.00 Ft | P34: =SUM(Havi[[#This Row],[Jan.]:[Dec.]]) -> 2,000.00 Ft
B35: Választható | C35: Szórakozás | D35: 50.00 Ft | E35: 150.00 Ft | F35: 100.00 Ft | G35: 50.00 Ft | H35: 150.00 Ft | I35: 100.00 Ft | P35: =SUM(Havi[[#This Row],[Jan.]:[Dec.]]) -> 600.00 Ft
B36: Választható | C36: Kozmetikumok | D36: 15.00 Ft | E36: 25.00 Ft | F36: 35.00 Ft | G36: 15.00 Ft | H36: 25.00 Ft | I36: 35.00 Ft | P36: =SUM(Havi[[#This Row],[Jan.]:[Dec.]]) -> 150.00 Ft
B37: Választható | C37: Bevásárlás | D37: 100.00 Ft | E37: 200.00 Ft | F37: 150.00 Ft | G37: 175.00 Ft | H37: 150.00 Ft | I37: 175.00 Ft | P37: =SUM(Havi[[#This Row],[Jan.]:[Dec.]]) -> 950.00 Ft
B38: Választható | C38: Adományok | D38: 50.00 Ft | E38: 50.00 Ft | F38: 50.00 Ft | G38: 50.00 Ft | H38: 50.00 Ft | I38: 50.00 Ft | P38: =SUM(Havi[[#This Row],[Jan.]:[Dec.]]) -> 300.00 Ft
B39: Választható | C39: Klubtagságok | D39: 25.00 Ft | E39: 25.00 Ft | F39: 25.00 Ft | G39: 25.00 Ft | H39: 25.00 Ft | I39: 25.00 Ft | P39: =SUM(Havi[[#This Row],[Jan.]:[Dec.]]) -> 150.00 Ft
B40: Választható | C40: Otthoni fejlesztések | D40: 400.00 Ft | E40: 400.00 Ft | F40: 400.00 Ft | G40: 400.00 Ft | H40: 400.00 Ft | I40: 400.00 Ft | P40: =SUM(Havi[[#This Row],[Jan.]:[Dec.]]) -> 2,400.00 Ft
B41: Választható | C41: Egyéb 1 | D41: 0.00 Ft | E41: 0.00 Ft | F41: 0.00 Ft | G41: 0.00 Ft | H41: 0.00 Ft | I41: 0.00 Ft | P41: =SUM(Havi[[#This Row],[Jan.]:[Dec.]]) -> 0.00 Ft
B42: Választható | C42: Egyéb 2 | D42: 0.00 Ft | E42: 0.00 Ft | F42: 0.00 Ft | G42: 0.00 Ft | H42: 0.00 Ft | I42: 0.00 Ft | P42: =SUM(Havi[[#This Row],[Jan.]:[Dec.]]) -> 0.00 Ft
B43: Megtakarítások | C43: Készpénztartalék | D43: 416.67 Ft | E43: 416.67 Ft | F43: 416.67 Ft | G43: 416.67 Ft | H43: 416.67 Ft | I43: 416.67 Ft | P43: =SUM(Havi[[#This Row],[Jan.]:[Dec.]]) -> 2,500.00 Ft
B44: Megtakarítások | C44: 401(k)/Etc | D44: 1,000.00 Ft | E44: 1,000.00 Ft | F44: 1,000.00 Ft | G44: 1,000.00 Ft | H44: 1,000.00 Ft | I44: 1,000.00 Ft | P44: =SUM(Havi[[#This Row],[Jan.]:[Dec.]]) -> 6,000.00 Ft
B45: Megtakarítások | C45: Megtakarítási számla | D45: 500.00 Ft | E45: 500.00 Ft | F45: 500.00 Ft | G45: 500.00 Ft | H45: 500.00 Ft | I45: 500.00 Ft | P45: =SUM(Havi[[#This Row],[Jan.]:[Dec.]]) -> 3,000.00 Ft
B46: Megtakarítások | C46: Egyéb 1 | D46: 0.00 Ft | E46: 0.00 Ft | F46: 0.00 Ft | G46: 0.00 Ft | H46: 0.00 Ft | I46: 0.00 Ft | P46: =SUM(Havi[[#This Row],[Jan.]:[Dec.]]) -> 0.00 Ft
B47: Megtakarítások | C47: Egyéb 2 | D47: 0.00 Ft | E47: 0.00 Ft | F47: 0.00 Ft | G47: 0.00 Ft | H47: 0.00 Ft | I47: 0.00 Ft | P47: =SUM(Havi[[#This Row],[Jan.]:[Dec.]]) -> 0.00 Ft
B48: Összeg | D48: =SUMIF(Havi[Típus],"Bevétel",Havi[Jan.])-SUMIF(Havi[Típus],"<>Bevétel",Havi[Jan.]) -> 3,692.50 Ft | E48: =SUMIF(Havi[Típus],"Bevétel",Havi[Febr.])-SUMIF(Havi[Típus],"<>Bevétel",Havi[Febr.]) -> 3,247.50 Ft | F48: =SUMIF(Havi[Típus],"Bevétel",Havi[Márc.])-SUMIF(Havi[Típus],"<>Bevétel",Havi[Márc.]) -> 2,522.50 Ft | G48: =SUMIF(Havi[Típus],"Bevétel",Havi[Ápr.])-SUMIF(Havi[Típus],"<>Bevétel",Havi[Ápr.]) -> 3,427.50 Ft | H48: =SUMIF(Havi[Típus],"Bevétel",Havi[Máj.])-SUMIF(Havi[Típus],"<>Bevétel",Havi[Máj.]) -> 2,887.50 Ft | I48: =SUMIF(Havi[Típus],"Bevétel",Havi[Jún.])-SUMIF(Havi[Típus],"<>Bevétel",Havi[Jún.]) -> 2,602.50 Ft | J48: =SUMIF(Havi[Típus],"Bevétel",Havi[Júl.])-SUMIF(Havi[Típus],"<>Bevétel",Havi[Júl.]) -> 0.00 Ft | K48: =SUMIF(Havi[Típus],"Bevétel",Havi[Aug.])-SUMIF(Havi[Típus],"<>Bevétel",Havi[Aug.]) -> 0.00 Ft | L48: =SUMIF(Havi[Típus],"Bevétel",Havi[Szept.])-SUMIF(Havi[Típus],"<>Bevétel",Havi[Szept.]) -> 0.00 Ft | M48: =SUMIF(Havi[Típus],"Bevétel",Havi[Okt.])-SUMIF(Havi[Típus],"<>Bevétel",Havi[Okt.]) -> 0.00 Ft | N48: =SUMIF(Havi[Típus],"Bevétel",Havi[Nov.])-SUMIF(Havi[Típus],"<>Bevétel",Havi[Nov.]) -> 0.00 Ft | O48: =SUMIF(Havi[Típus],"Bevétel",Havi[Dec.])-SUMIF(Havi[Típus],"<>Bevétel",Havi[Dec.]) -> 0.00 Ft | P48: =SUMIF(Havi[Típus],"Bevétel",Havi[Összeg])-SUMIF(Havi[Típus],"<>Bevétel",Havi[Összeg]) -> 18,380.00 Ft

Sheet Éves pénzforgalom
A1: Éves pénzforgalom Ezen a munkalapon egy éves pénzforgalmi kimutatást hozhat létre. A következő négy munkalapon adhatja meg az adatokat. A sablon a D2 cellában automatikusan kiszámítja a teljes aktuális pénzforgalmat. A diagramok frissítéséhez lépjen ide: Adatok menüszalag -> Az összes frissítése. A G2 cellában egy tipp szerepel. | B1: SZEMÉLYES PÉNZFORGALOM
C2: Teljes eddigi pénzforgalom: | D2: =AktuálisÉvesPénforgalom -> 42,250.00 Ft | G2: Ez egy éves becslés. Akkor használja ezt a munkalapot, ha az éves összegeket becsült havi értékekkel szeretné megtekinteni. Az elemeket a Bevétel, a Kiadások, a Belátás és a Megtakarítás munkalapon adhatja meg.
B4: BEVÉTELEK ÖSSZEGZÉSE | F4: KIADÁSOK ÖSSZEGZÉSE | J4: VÁLASZTHATÓ KIADÁSOK ÖSSZEGZÉSE | N4: MEGTAKARÍTÁSOK ÖSSZEGZÉSE
B5: Teljes éves: | C5: =Bevétel!C11 -> 125,000.00 Ft | F5: Teljes éves: | G5: =Kiadások[[#Totals],[Éves ]] -> 46,500.00 Ft | J5: Teljes éves: | K5: =Választható[[#Totals],[Éves ]] -> 13,250.00 Ft | N5: Teljes éves: | O5: =Megtakarítások[[#Totals],[Éves ]] -> 23,000.00 Ft
B8: Teljes havi: | C8: =Bevétel!D11 -> 10,416.67 Ft | F8: Teljes havi: | G8: =Kiadások[[#Totals],[Havi ]] -> 3,875.00 Ft | J8: Teljes havi: | K8: =Választható[[#Totals],[Havi ]] -> 1,104.17 Ft | N8: Teljes havi: | O8: =Megtakarítások!D10 -> 1,916.67 Ft
R10: Row Labels | S10: Éves bevétel | U10: Row Labels | V10: Sum of Éves | X10: Row Labels | Y10: Sum of Éves | AA10: Row Labels | AB10: Sum of Éves
R11: Egyéb 3 | S11: 0 Ft | U11: Egyéb 1 | V11: 0 Ft | X11: Egyéb 1 | Y11: 0 Ft | AA11: Egyéb 1 | AB11: 0 Ft
R12: Egyéb 4 | S12: 0 Ft | U12: Egyéb 2 | V12: 0 Ft | X12: Egyéb 2 | Y12: 0 Ft | AA12: Egyéb 2 | AB12: 0 Ft
R13: Egyéb 2 | S13: 0 Ft | U13: Szemét | V13: 150 Ft | X13: Klubtagságok | Y13: 300 Ft | AA13: Készpénztartalék | AB13: 5,000 Ft
R14: Jutalék/bónusz | S14: 5,000 Ft | U14: Járműadó/díjak | V14: 200 Ft | X14: Kozmetikumok | Y14: 300 Ft | AA14: Megtakarítás/befektetés | AB14: 6,000 Ft
R15: Egyéb 1 | S15: 30,000 Ft | U15: Biztosítás | V15: 250 Ft | X15: Ajándékok | Y15: 600 Ft | AA15: Nyugdíj-megtakarítások | AB15: 12,000 Ft
R16: Fizetés | S16: 90,000 Ft | U16: Internet | V16: 600 Ft | X16: Adományok | Y16: 600 Ft | AA16: Grand Total | AB16: 23,000 Ft
R17: Grand Total | S17: 125,000 Ft | U17: Gáz | V17: 600 Ft | X17: Étkezés | Y17: 1,200 Ft
U18: Telefon | V18: 600 Ft | X18: Szórakozás | Y18: 1,200 Ft
U19: Orvos/fogorvos/gyógyszerek | V19: 600 Ft | X19: Bevásárlás | Y19: 2,000 Ft
U20: Víz/csatorna | V20: 600 Ft | X20: Utazás | Y20: 2,250 Ft
U21: Áram | V21: 1,200 Ft | X21: Otthoni fejlesztések | Y21: 4,800 Ft
U22: Ruhanemű | V22: 1,200 Ft | X22: Grand Total | Y22: 13,250 Ft
U23: Fogyatékkal élőknek szóló prémium funkciók | V23: 1,500 Ft
U24: Jövedelemadó | V24: 2,500 Ft
U25: Járműtörlesztés | V25: 4,000 Ft
U26: Élelmiszer | V26: 5,000 Ft
U27: Társadalombiztosítás/egészségbiztosítás | V27: 12,500 Ft
U28: Jelzálog/bérlet | V28: 15,000 Ft
U29: Grand Total | V29: 46,500 Ft

Sheet Bevétel
B1: SZEMÉLYES PÉNZFORGALOM | I1: Kiadás!A1
C2: Teljes eddigi pénzforgalom: | D2: =AktuálisÉvesPénforgalom -> 42,250.00 Ft | F2: Ez egy éves becslés. Akkor használja ezt a munkalapot, ha az éves összegeket becsült havi értékekkel szeretné megtekinteni. Ha napi tételeket szeretne felvenni a táblázatba, becsülje fel azok éves összegét/értékét, és írja be az értéket az Éves oszlopba.
B4: Bevétel | C4: Éves | D4: Havi
B5: Fizetés | C5: 90,000.00 Ft | D5: =Bevétel[[#This Row],[Éves ]]/12 -> 7,500.00 Ft
B6: Jutalék/bónusz | C6: 5,000.00 Ft | D6: =Bevétel[[#This Row],[Éves ]]/12 -> 416.67 Ft
B7: Egyéb 1 | C7: 30,000.00 Ft | D7: =Bevétel[[#This Row],[Éves ]]/12 -> 2,500.00 Ft
B8: Egyéb 2 | C8: 0.00 Ft | D8: =Bevétel[[#This Row],[Éves ]]/12 -> 0.00 Ft
B9: Egyéb 3 | C9: 0.00 Ft | D9: =Bevétel[[#This Row],[Éves ]]/12 -> 0.00 Ft
B10: Egyéb 4 | C10: 0.00 Ft | D10: =Bevétel[[#This Row],[Éves ]]/12 -> 0.00 Ft
B11: Összeg | C11: =SUBTOTAL(109,Bevétel[[Éves ]]) -> 125,000.00 Ft | D11: =SUBTOTAL(109,Bevétel[[Havi ]]) -> 10,416.67 Ft

Sheet Kiadás
B1: SZEMÉLYES PÉNZFORGALOM | H1: Kiadás!A1
C2: Teljes eddigi pénzforgalom: | D2: =AktuálisÉvesPénforgalom -> 42,250.00 Ft | F2: Ez egy éves becslés. Akkor használja ezt a munkalapot, ha az éves összegeket becsült havi értékekkel szeretné megtekinteni. Ha napi tételeket szeretne felvenni a táblázatba, becsülje fel azok éves összegét/értékét, és írja be az értéket az Éves oszlopba.
B4: Kiadások | C4: Éves | D4: Havi
B5: Társadalombiztosítás/egészségbiztosítás | C5: 12,500.00 Ft | D5: =Kiadások[[#This Row],[Éves ]]/12 -> 1,041.67 Ft
B6: Jövedelemadó | C6: 2,500.00 Ft | D6: =Kiadások[[#This Row],[Éves ]]/12 -> 208.33 Ft
B7: Járműadó/díjak | C7: 200.00 Ft | D7: =Kiadások[[#This Row],[Éves ]]/12 -> 16.67 Ft
B8: Járműtörlesztés | C8: 4,000.00 Ft | D8: =Kiadások[[#This Row],[Éves ]]/12 -> 333.33 Ft
B9: Jelzálog/bérlet | C9: 15,000.00 Ft | D9: =Kiadások[[#This Row],[Éves ]]/12 -> 1,250.00 Ft
B10: Biztosítás | C10: 250.00 Ft | D10: =Kiadások[[#This Row],[Éves ]]/12 -> 20.83 Ft
B11: Áram | C11: 1,200.00 Ft | D11: =Kiadások[[#This Row],[Éves ]]/12 -> 100.00 Ft
B12: Gáz | C12: 600.00 Ft | D12: =Kiadások[[#This Row],[Éves ]]/12 -> 50.00 Ft
B13: Víz/csatorna | C13: 600.00 Ft | D13: =Kiadások[[#This Row],[Éves ]]/12 -> 50.00 Ft
B14: Szemét | C14: 150.00 Ft | D14: =Kiadások[[#This Row],[Éves ]]/12 -> 12.50 Ft
B15: Telefon | C15: 600.00 Ft | D15: =Kiadások[[#This Row],[Éves ]]/12 -> 50.00 Ft
B16: Internet | C16: 600.00 Ft | D16: =Kiadások[[#This Row],[Éves ]]/12 -> 50.00 Ft
B17: Fogyatékkal élőknek szóló prémium funkciók | C17: 1,500.00 Ft | D17: =Kiadások[[#This Row],[Éves ]]/12 -> 125.00 Ft
B18: Élelmiszer | C18: 5,000.00 Ft | D18: =Kiadások[[#This Row],[Éves ]]/12 -> 416.67 Ft
B19: Ruhanemű | C19: 1,200.00 Ft | D19: =Kiadások[[#This Row],[Éves ]]/12 -> 100.00 Ft
B20: Orvos/fogorvos/gyógyszerek | C20: 600.00 Ft | D20: =Kiadások[[#This Row],[Éves ]]/12 -> 50.00 Ft
B21: Egyéb 1 | C21: 0.00 Ft | D21: =Kiadások[[#This Row],[Éves ]]/12 -> 0.00 Ft
B22: Egyéb 2 | C22: 0.00 Ft | D22: =Kiadások[[#This Row],[Éves ]]/12 -> 0.00 Ft
B23: Összeg | C23: =SUBTOTAL(109,Kiadások[[Éves ]]) -> 46,500.00 Ft | D23: =SUBTOTAL(109,Kiadások[[Havi ]]) -> 3,875.00 Ft

Sheet Választható
B1: SZEMÉLYES PÉNZFORGALOM | G1: Kiadás!A1
C2: Teljes eddigi pénzforgalom: | D2: =AktuálisÉvesPénforgalom -> 42,250.00 Ft | F2: Ez egy éves becslés. Akkor használja ezt a munkalapot, ha az éves összegeket becsült havi értékekkel szeretné megtekinteni. Ha napi tételeket szeretne felvenni a táblázatba, becsülje fel azok éves összegét/értékét, és írja be az értéket az Éves oszlopba.
B4: Kiadások | C4: Éves | D4: Havi
B5: Étkezés | C5: 1,200.00 Ft | D5: =Választható[[#This Row],[Éves ]]/12 -> 100.00 Ft
B6: Ajándékok | C6: 600.00 Ft | D6: =Választható[[#This Row],[Éves ]]/12 -> 50.00 Ft
B7: Utazás | C7: 2,250.00 Ft | D7: =Választható[[#This Row],[Éves ]]/12 -> 187.50 Ft
B8: Szórakozás | C8: 1,200.00 Ft | D8: =Választható[[#This Row],[Éves ]]/12 -> 100.00 Ft
B9: Kozmetikumok | C9: 300.00 Ft | D9: =Választható[[#This Row],[Éves ]]/12 -> 25.00 Ft
B10: Bevásárlás | C10: 2,000.00 Ft | D10: =Választható[[#This Row],[Éves ]]/12 -> 166.67 Ft
B11: Adományok | C11: 600.00 Ft | D11: =Választható[[#This Row],[Éves ]]/12 -> 50.00 Ft
B12: Klubtagságok | C12: 300.00 Ft | D12: =Választható[[#This Row],[Éves ]]/12 -> 25.00 Ft
B13: Otthoni fejlesztések | C13: 4,800.00 Ft | D13: =Választható[[#This Row],[Éves ]]/12 -> 400.00 Ft
B14: Egyéb 1 | C14: 0.00 Ft | D14: =Választható[[#This Row],[Éves ]]/12 -> 0.00 Ft
B15: Egyéb 2 | C15: 0.00 Ft | D15: =Választható[[#This Row],[Éves ]]/12 -> 0.00 Ft
B16: Összeg | C16: =SUBTOTAL(109,Választható[[Éves ]]) -> 13,250.00 Ft | D16: =SUBTOTAL(109,Választható[[Havi ]]) -> 1,104.17 Ft

Sheet Megtakarítások
B1: SZEMÉLYES PÉNZFORGALOM
C2: Teljes eddigi pénzforgalom: | D2: =AktuálisÉvesPénforgalom -> 42,250.00 Ft | F2: Ez egy éves becslés. Akkor használja ezt a munkalapot, ha az éves összegeket becsült havi értékekkel szeretné megtekinteni. Ha napi tételeket szeretne felvenni a táblázatba, becsülje fel azok éves összegét/értékét, és írja be az értéket az Éves oszlopba.
B4: Megtakarítások | C4: Éves | D4: Havi
B5: Készpénztartalék | C5: 5,000.00 Ft | D5: =Megtakarítások[[#This Row],[Éves ]]/12 -> 416.67 Ft
B6: Nyugdíj-megtakarítások | C6: 12,000.00 Ft | D6: =Megtakarítások[[#This Row],[Éves ]]/12 -> 1,000.00 Ft
B7: Megtakarítás/befektetés | C7: 6,000.00 Ft | D7: =Megtakarítások[[#This Row],[Éves ]]/12 -> 500.00 Ft
B8: Egyéb 1 | C8: 0.00 Ft | D8: =Megtakarítások[[#This Row],[Éves ]]/12 -> 0.00 Ft
B9: Egyéb 2 | C9: 0.00 Ft | D9: =Megtakarítások[[#This Row],[Éves ]]/12 -> 0.00 Ft
B10: Összeg | C10: =SUBTOTAL(109,Megtakarítások[[Éves ]]) -> 23,000.00 Ft | D10: =SUBTOTAL(109,Megtakarítások[[Havi ]]) -> 1,916.67 Ft
